fUSD/lending_fUSD_20240425
["ID","MTS","AMOUNT","RATE_DAILY","PERIOD"]
[323535425,1714075848324,-3422.94,0.00011404,2]
[323535426,1714075848333,-500.0,0.00011404,2]
[323535427,1714075848342,-636.4,0.00011404,2]
[323535428,1714075848352,-1676.11,0.00011404,2]
[323535429,1714075848361,-1174.92,0.00011404,2]
[323535430,1714075848371,-611.66,0.00011404,2]
[323535431,1714075848381,-500.0,0.00011405,2]
[323535432,1714075848390,-500.0,0.00011405,2]
[323535433,1714075848399,-500.0,0.00011405,2]
[323535434,1714075848409,-500.0,0.00011405,2]
[323535435,1714075848418,-291.12,0.00011405,2]
[323535436,1714075848427,-428.67,0.00011405,2]
[323535437,1714075848436,-500.0,0.00011405,2]
[323535438,1714075848445,-500.0,0.00011405,2]
[323535439,1714075848454,-500.0,0.00011405,2]
[323535440,1714075848463,-500.0,0.00011405,2]
[323535441,1714075848472,-500.0,0.00011405,2]
[323535442,1714075848481,-500.0,0.00011405,2]
[323535443,1714075848491,-500.0,0.00011405,2]
[323535444,1714075848500,-500.0,0.00011405,2]
[323535445,1714075848509,-500.0,0.00011405,2]
[323535446,1714075848518,-500.0,0.00011405,2]
[323535447,1714075848527,-500.0,0.00011405,2]
[323535448,1714075848536,-500.0,0.00011405,2]
[323535449,1714075848545,-551.49,0.00011405,2]
[323535450,1714075848554,-161.84,0.00011405,2]
[323535451,1714075848563,-500.0,0.00011405,2]
[323535452,1714075848572,-500.0,0.00011405,2]
[323535453,1714075848582,-500.0,0.00011405,2]
[323535454,1714075848591,-500.0,0.00011405,2]
[323535455,1714075848600,-500.0,0.00011405,2]
[323535456,1714075848609,-500.0,0.00011405,2]
[323535457,1714075848618,-509.34,0.00011405,2]
[323535458,1714075848627,-500.0,0.00011405,2]
[323535459,1714075848636,-751.85,0.00011405,2]
[323535460,1714075848645,-500.0,0.00011405,2]
[323535461,1714075848654,-500.0,0.00011405,2]
[323535462,1714075848662,-588.69,0.00011405,2]
[323535463,1714075848671,-500.0,0.00011405,2]
[323535464,1714075848680,-921.42,0.00011405,2]
[323535465,1714075848689,-779.87,0.00011405,2]
[323535466,1714075848697,-549.34185563,0.00011405,2]
[323535467,1714075848706,-500.0,0.00011405,2]
[323535468,1714075848714,-500.0,0.00011405,2]
[323535469,1714075848723,-608.3,0.00011405,2]
[323535470,1714075848732,-500.0,0.00011405,2]
[323535471,1714075848740,-500.0,0.00011405,2]
[323535472,1714075848749,-500.0,0.00011405,2]
[323535473,1714075848758,-500.0,0.00011405,2]
[323535474,1714075848766,-500.0,0.00011405,2]
[323535475,1714075848775,-228.2147,0.00011406,2]
[323535476,1714075848784,-500.0,0.00011504,2]
[323535477,1714075848793,-574.93,0.00011504,2]
[323535478,1714075848805,-566.2,0.00011504,2]
[323535479,1714075848814,-500.0,0.00011504,2]
[323535480,1714075848823,-522.78,0.00011504,2]
[323535481,1714075848833,-500.0,0.00011504,2]
[323535482,1714075848842,-500.0,0.00011504,2]
[323535483,1714075848852,-500.0,0.00011504,2]
[323535484,1714075848862,-500.0,0.00011504,2]
[323535485,1714075848871,-500.0,0.00011504,2]
[323535486,1714075848880,-619.72,0.00011504,2]
[323535487,1714075848890,-304.78,0.00011504,2]
[323535488,1714075848899,-500.0,0.00011504,2]
[323535489,1714075848908,-500.0,0.00011504,2]
[323535490,1714075848917,-500.0,0.00011504,2]
[323535491,1714075848926,-344.62,0.00011504,2]
[323535492,1714075848936,-609.82887267,0.00011504,2]
[323535493,1714075848945,-500.0,0.00011504,2]
[323535494,1714075848956,-417.9,0.00011504,2]
[323535495,1714075848970,-500.0,0.00011504,2]
[323535496,1714075848979,-500.0,0.00011504,2]
[323535497,1714075848988,-500.0,0.00011504,2]
[323535498,1714075848997,-157.77868432,0.00011504,2]
[323535499,1714075849007,-500.0,0.00011504,2]
[323535500,1714075849016,-509.71855062,0.00011504,2]
[323535501,1714075849026,-500.0,0.00011504,2]
[323535502,1714075849036,-500.0,0.00011504,2]
[323535503,1714075849045,-507.00929133,0.00011504,2]
[323535504,1714075849055,-500.0,0.00011504,2]
[323535505,1714075849064,-500.0,0.00011504,2]
[323535506,1714075849073,-604.17,0.00011504,2]
[323535507,1714075849082,-515.55,0.00011504,2]
[323535508,1714075849093,-519.04871002,0.00011504,2]
[323535509,1714075849102,-256.14927545,0.00011504,2]
[323535510,1714075849112,-287.69,0.00011504,2]
[323535511,1714075849121,-500.0,0.00011504,2]
[323535512,1714075849130,-512.90482955,0.00011504,2]
[323535513,1714075849139,-500.0,0.00011504,2]
[323535514,1714075849148,-500.0,0.00011504,2]
[323535515,1714075849158,-500.0,0.00011504,2]
[323535516,1714075849167,-500.0,0.00011504,2]
[323535517,1714075849176,-500.0,0.00011504,2]
[323535518,1714075849185,-500.0,0.00011504,2]
[323535519,1714075849194,-500.0,0.00011504,2]
[323535520,1714075849204,-857.97,0.00011504,2]
[323535521,1714075849213,-500.0,0.00011504,2]
[323535522,1714075849222,-500.0,0.00011504,2]
[323535523,1714075849231,-500.0,0.00011504,2]
[323535524,1714075849240,-500.0,0.00011504,2]
[323535525,1714075849250,-1130.14,0.00011504,2]
[323535526,1714075849259,-549.02,0.00011504,2]
[323535527,1714075849268,-5488.11,0.00011504,2]
[323535528,1714075849278,-500.0,0.00011504,2]
[323535529,1714075849287,-798.52,0.00011504,2]
[323535530,1714075849296,-1193.54,0.00011504,2]
[323535531,1714075849305,-959.44,0.00011504,2]
[323535532,1714075849314,-168.54817821,0.00011504,2]
[323535533,1714075849323,-617.03,0.00011504,2]
[323535534,1714075849332,-884.68,0.00011504,2]
[323535535,1714075849341,-500.0,0.00011504,2]
[323535536,1714075849350,-13792.86,0.00011504,2]
[323535537,1714075849359,-1991.65,0.00011504,2]
[323535538,1714075849368,-589.11,0.00011504,2]
[323535539,1714075849378,-645.1,0.00011504,2]
[323535540,1714075849388,-500.0,0.00011504,2]
[323535541,1714075849397,-1124.46,0.00011504,2]
[323535542,1714075849407,-713.7,0.00011504,2]
[323535543,1714075849416,-537.13,0.00011504,2]
[323535544,1714075849426,-500.0,0.00011504,2]
[323535545,1714075849435,-2197.38,0.00011504,2]
[323535546,1714075849445,-1252.82,0.00011504,2]
[323535547,1714075849454,-512.73,0.00011504,2]
[323535548,1714075849464,-618.15,0.00011504,2]
[323535549,1714075849473,-537.32,0.00011504,2]
[323535550,1714075849482,-535.78,0.00011504,2]
[323535551,1714075849491,-180.72,0.00011504,2]
[323535552,1714075849501,-500.0,0.00011504,2]
[323535553,1714075849510,-500.0,0.00011504,2]
[323535554,1714075849520,-500.0,0.00011504,2]
[323535555,1714075849529,-500.0,0.00011504,2]
[323535556,1714075849539,-613.56,0.00011504,2]
[323535557,1714075849549,-1265.24,0.00011504,2]
[323535558,1714075849559,-500.0,0.00011504,2]
[323535559,1714075849567,-500.0,0.00011504,2]
[323535560,1714075849576,-500.0,0.00011504,2]
[323535561,1714075849585,-500.0,0.00011504,2]
[323535562,1714075849594,-2760.73,0.00011504,2]
[323535563,1714075849603,-1980.7,0.00011504,2]
[323535564,1714075849612,-500.0,0.00011504,2]
[323535565,1714075849621,-689.24,0.00011504,2]
[323535566,1714075849631,-500.0,0.00011504,2]
[323535567,1714075849641,-550.25,0.00011504,2]
[323535568,1714075849650,-500.0,0.00011504,2]
[323535569,1714075849659,-500.0,0.00011504,2]
[323535570,1714075849668,-500.0,0.00011504,2]
[323535571,1714075849677,-567.05,0.00011504,2]
[323535572,1714075849687,-589.85,0.00011504,2]
[323535573,1714075849696,-500.0,0.00011504,2]
[323535574,1714075849705,-500.0,0.00011504,2]
[323535575,1714075849714,-500.0,0.00011504,2]
[323535576,1714075849723,-729.86,0.00011505,2]
[323535577,1714075849733,-500.0,0.00011505,2]
[323535578,1714075849742,-1035.2,0.00011505,2]
[323535579,1714075849751,-1877.44,0.00011505,2]
[323535580,1714075849760,-500.0,0.00011505,2]
[323535581,1714075849769,-500.0,0.00011505,2]
[323535582,1714075849779,-1198.92,0.00011505,2]
[323535583,1714075849788,-3028.96,0.00011505,2]
[323535584,1714075849797,-1063.08,0.00011505,2]
[323535585,1714075849806,-500.0,0.00011505,2]
[323535586,1714075849816,-500.0,0.00011505,2]
[323535587,1714075849824,-1013.53,0.00011505,2]
[323535588,1714075849834,-738.25,0.00011505,2]
[323535589,1714075849843,-500.0,0.00011505,2]
[323535590,1714075849852,-508.55,0.00011505,2]
[323535591,1714075849862,-1279.98,0.00011505,2]
[323535592,1714075849871,-500.0,0.00011505,2]
[323535593,1714075849882,-500.0,0.00011506,2]
[323535594,1714075849890,-378.14563322,0.00011506,2]
[323535595,1714075849899,-544.57,0.00011506,2]
[323535596,1714075849908,-686.66,0.00011506,2]
[323535597,1714075849917,-569.44,0.00011506,2]
[323535598,1714075849927,-500.0,0.00011506,2]
[323535599,1714075849936,-500.0,0.00011506,2]
[323535600,1714075849945,-500.0,0.00011506,2]
[323535601,1714075849955,-703.8,0.00011506,2]
[323535602,1714075849964,-500.0,0.00011506,2]
[323535603,1714075849974,-682.34,0.00011506,2]
[323535604,1714075849984,-500.0,0.00011506,2]
[323535605,1714075849994,-425.09,0.00011506,2]
[323535606,1714075850003,-500.0,0.00011506,2]
[323535607,1714075850015,-171.37,0.00011506,2]
[323535608,1714075850024,-500.0,0.00011506,2]
[323535609,1714075850034,-500.0,0.00011506,2]
[323535610,1714075850044,-500.0,0.00011506,2]
[323535611,1714075850054,-500.0,0.00011506,2]
[323535612,1714075850064,-227.87,0.00011506,2]
[323535613,1714075850073,-500.0,0.00011506,2]
[323535614,1714075850083,-710.61,0.00011506,2]
[323535615,1714075850094,-609.7,0.00011506,2]
[323535616,1714075850104,-500.0,0.00011506,2]
[323535617,1714075850114,-500.0,0.00011506,2]
[323535618,1714075850124,-500.0,0.00011506,2]
[323535619,1714075850140,-500.0,0.00011506,2]
[323535620,1714075850150,-500.0,0.00011506,2]
[323535621,1714075850160,-500.0,0.00011506,2]
[323535622,1714075850170,-582.65728021,0.00011506,2]
[323535623,1714075850180,-500.0,0.00011506,2]
[323535624,1714075850190,-500.0,0.00011506,2]
[323535625,1714075850199,-394.65,0.00011506,2]
[323535626,1714075850208,-500.0,0.00011506,2]
[323535627,1714075850217,-500.0,0.00011506,2]
[323535628,1714075850227,-347.1,0.00011506,2]
[323535629,1714075850237,-500.0,0.00011506,2]
[323535630,1714075850247,-315.93,0.00011506,2]
[323535631,1714075850258,-436.5,0.00011506,2]
[323535632,1714075850268,-869.29,0.00011506,2]
[323535633,1714075850278,-500.0,0.00011506,2]
[323535634,1714075850287,-500.0,0.00011506,2]
[323535635,1714075850297,-500.0,0.00011506,2]
[323535636,1714075850307,-500.0,0.00011506,2]
[323535637,1714075850316,-500.0,0.00011506,2]
[323535638,1714075850326,-559.23,0.00011506,2]
[323535639,1714075850336,-500.0,0.00011506,2]
[323535640,1714075850347,-3376.32,0.00011506,2]
[323535641,1714075850357,-500.0,0.00011506,2]
[323535642,1714075850366,-1686.89,0.00011506,2]
[323535643,1714075850376,-8580.36,0.00011506,2]
[323535644,1714075850385,-364.05,0.00011506,2]
[323535645,1714075850394,-541.99,0.00011506,2]
[323535646,1714075850404,-500.0,0.00011506,2]
[323535647,1714075850414,-500.0,0.00011506,2]
[323535648,1714075850424,-500.0,0.00011506,2]
[323535649,1714075850434,-799.78,0.00011506,2]
[323535650,1714075850443,-6085.27,0.00011506,2]
[323535651,1714075850453,-783.95,0.00011506,2]
[323535652,1714075850462,-500.0,0.00011506,2]
[323535653,1714075850472,-613.56,0.00011506,2]
[323535654,1714075850482,-2348.68,0.00011506,2]
[323535655,1714075850492,-910.74,0.00011506,2]
[323535656,1714075850502,-577.73,0.00011506,2]
[323535657,1714075850512,-777.87,0.00011506,2]
[323535658,1714075850522,-248.91,0.00011506,2]
[323535659,1714075850532,-597.55,0.00011506,2]
[323535660,1714075850541,-746.37,0.00011506,2]
[323535661,1714075850551,-500.0,0.00011506,2]
[323535662,1714075850561,-577.87,0.00011506,2]
[323535663,1714075850570,-1667.92,0.00011506,2]
[323535664,1714075850580,-500.0,0.00011506,2]
[323535665,1714075850590,-4951.04,0.00011506,2]
[323535666,1714075850600,-500.0,0.00011506,2]
[323535667,1714075850611,-602.62,0.00011506,2]
[323535668,1714075850621,-754.74,0.00011506,2]
[323535669,1714075850633,-1191.43,0.00011506,2]
[323535670,1714075850643,-2964.04,0.00011506,2]
[323535671,1714075850653,-2247.44,0.00011506,2]
[323535672,1714075850663,-1008.25,0.00011506,2]
[323535673,1714075850673,-500.0,0.00011506,2]
[323535674,1714075850682,-500.0,0.00011506,2]
[323535675,1714075850861,-1540.66,0.00011506,2]
[323535676,1714075850882,-901.43,0.00011506,2]
[323535677,1714075850892,-500.0,0.00011506,2]
[323535678,1714075850901,-500.0,0.00011506,2]
[323535679,1714075850911,-500.0,0.00011506,2]
[323535680,1714075850920,-500.0,0.00011506,2]
[323535681,1714075850930,-4041.35,0.00011506,2]
[323535682,1714075850939,-500.0,0.00011506,2]
[323535683,1714075850949,-1936.15,0.00011506,2]
[323535684,1714075850958,-2492.02,0.00011506,2]
[323535685,1714075850968,-509.91,0.00011506,2]
[323535686,1714075850978,-1405.05,0.00011506,2]
[323535687,1714075850988,-668.47,0.00011506,2]
[323535688,1714075850997,-763.75,0.00011506,2]
[323535689,1714075851007,-906.17,0.00011506,2]
[323535690,1714075851018,-500.0,0.00011506,2]
[323535691,1714075851029,-150.92290354,0.00011506,2]
[323535692,1714075851039,-500.0,0.00011506,2]
[323535693,1714075851048,-974.44,0.00011506,2]
[323535694,1714075851058,-500.0,0.00011506,2]
[323535695,1714075851068,-3854.82,0.00011506,2]
[323535696,1714075851077,-168.99271974,0.00011516,2]
[323535697,1714075851087,-542.0,0.00011556,2]
[323535698,1714075851097,-1256.0,0.00011556,2]
[323535699,1714075851106,-1227.0,0.00011556,2]
[323535700,1714075851115,-437.0,0.00011556,2]
[323535701,1714075851125,-610.0,0.00011556,2]
[323535702,1714075851135,-1859.0,0.00011556,2]
[323535703,1714075851144,-807.0,0.00011556,2]
[323535704,1714075851154,-258.0,0.00011556,2]
[323535705,1714075851164,-1461.0,0.00011556,2]
[323535706,1714075851173,-330.0,0.00011556,2]
[323535707,1714075851183,-1593.207,0.00011556,2]
[323535708,1714075851192,-443.0,0.00011556,2]
[323535709,1714075851202,-214.0,0.00011566,2]
[323535710,1714075851212,-1120.0,0.00011566,2]
[323535711,1714075851225,-3568.13,0.00011566,2]
[323535712,1714075851235,-5895.0,0.00011566,2]
[323535713,1714075851245,-2706.0,0.00011566,2]
[323535714,1714075851255,-31973.43,0.00011566,2]
[323535715,1714075851265,-549.34185563,0.00011603,2]
[323535716,1714075851275,-635.97,0.00011678,2]
[323535717,1714075851284,-500.0,0.00011678,2]
[323535718,1714075851294,-1209.91,0.00011678,2]
[323535719,1714075851304,-666.61,0.00011678,2]
[323535720,1714075851314,-873.13,0.00011678,2]
[323535721,1714075851324,-3422.94,0.00011678,2]
[323535722,1714075851333,-500.0,0.00011678,2]
[323535723,1714075851343,-636.4,0.00011678,2]
[323535724,1714075851352,-1676.11,0.00011678,2]
[323535725,1714075851363,-3809.48463853,0.00011678,2]
[323535726,1714075851373,-1174.92,0.00011678,2]
[323535727,1714075851385,-611.66,0.00011678,2]
[323535728,1714075851395,-500.0,0.00011679,2]
[323535729,1714075851405,-500.0,0.00011679,2]
[323535730,1714075851416,-500.0,0.00011679,2]
[323535731,1714075851427,-500.0,0.00011679,2]
[323535732,1714075851437,-500.0,0.00011679,2]
[323535733,1714075851447,-500.0,0.00011679,2]
[323535734,1714075851458,-500.0,0.00011679,2]
[323535735,1714075851467,-500.0,0.00011679,2]
[323535736,1714075851478,-500.0,0.00011679,2]
[323535737,1714075851488,-500.0,0.00011679,2]
[323535738,1714075851498,-500.0,0.00011679,2]
[323535739,1714075851508,-551.49,0.00011679,2]
[323535740,1714075851518,-500.0,0.00011679,2]
[323535741,1714075851529,-500.0,0.00011679,2]
[323535742,1714075851539,-500.0,0.00011679,2]
[323535743,1714075851549,-500.0,0.00011679,2]
[323535744,1714075851559,-500.0,0.00011679,2]
[323535745,1714075851569,-500.0,0.00011679,2]
[323535746,1714075851580,-509.34,0.00011679,2]
[323535747,1714075851590,-500.0,0.00011679,2]
[323535748,1714075851601,-751.85,0.00011679,2]
[323535749,1714075851611,-500.0,0.00011679,2]
[323535750,1714075851621,-500.0,0.00011679,2]
[323535751,1714075851634,-588.69,0.00011679,2]
[323535752,1714075851644,-206.09,0.00011679,2]
[323535753,1714075851653,-921.42,0.00011679,2]
[323535754,1714075851663,-779.87,0.00011679,2]
[323535755,1714075851674,-500.0,0.00011679,2]
[323535756,1714075851684,-500.0,0.00011679,2]
[323535757,1714075851694,-282.12,0.00011679,2]
[323535758,1714075851704,-500.0,0.00011679,2]
[323535759,1714075851713,-500.0,0.00011679,2]
[323535760,1714075851723,-3809.48463844,0.00011698,2]
[323535761,1714075851732,-3809.48463844,0.00011718,2]
[323535762,1714075851742,-3809.48463844,0.00011739,2]
[323535763,1714075851751,-3809.48463844,0.00011759,2]
[323535764,1714075851761,-10000.0,0.0001176,2]
[323535765,1714075851771,-231.77052269,0.00011767,2]
[323535766,1714075851789,-4351.6773284,0.00011767,2]
[323535767,1714075851799,-565.4116933,0.00011776,2]
[323535768,1714075851808,-3413.36288726,0.00011777,2]
[323535769,1714075851818,-500.0,0.00011778,2]
[323535770,1714075851827,-574.93,0.00011778,2]
[323535771,1714075851837,-500.0,0.00011778,2]
[323535772,1714075851847,-522.78,0.00011778,2]
[323535773,1714075851857,-500.0,0.00011778,2]
[323535774,1714075851866,-500.0,0.00011778,2]
[323535775,1714075851876,-500.0,0.00011778,2]
[323535776,1714075851886,-500.0,0.00011778,2]
[323535777,1714075851895,-500.0,0.00011778,2]
[323535778,1714075851904,-500.0,0.00011778,2]
[323535779,1714075851913,-500.0,0.00011778,2]
[323535780,1714075851924,-500.0,0.00011778,2]
[323535781,1714075851934,-500.0,0.00011778,2]
[323535782,1714075851944,-500.0,0.00011778,2]
[323535783,1714075851953,-604.17,0.00011778,2]
[323535784,1714075851963,-500.0,0.00011778,2]
[323535785,1714075851972,-500.0,0.00011778,2]
[323535786,1714075851983,-500.0,0.00011778,2]
[323535787,1714075851992,-351.62,0.00011778,2]
[323535788,1714075852002,-500.0,0.00011778,2]
[323535789,1714075852012,-500.0,0.00011778,2]
[323535790,1714075852026,-500.0,0.00011778,2]
[323535791,1714075852036,-500.0,0.00011778,2]
[323535792,1714075852046,-676.65878157,0.00011778,2]
[323535793,1714075852074,-181.31121843,0.00011778,2]
[323535794,1714075852084,-500.0,0.00011778,2]
[323535795,1714075852094,-160.37407668,0.00011778,2]
[323535796,1714075852723,-500.0,0.00010958,2]
[323535797,1714075852744,-409.47761844,0.00010958,2]
[323535798,1714075852756,-90.52238156,0.00010958,2]
[323535799,1714075852766,-535.02,0.00010958,2]
[323535800,1714075852776,-444.73612306,0.0001123,2]
[323535801,1714075865136,2876.07417415,8.219e-05,2]
[323535802,1714076264915,1057.68,8.219e-05,2]
[323535803,1714076288018,170.54902541,5e-05,2]
[323535805,1714076346376,84018.13720483,0.00025,120]
[323535806,1714076361854,361.34595815,5e-05,2]
[323535807,1714076377806,361.20371607,5e-05,2]
[323535810,1714076397862,340.42433137,5e-05,2]
[323535813,1714076705195,1181.41552342,5e-05,2]
[323535814,1714076719815,1091.97741216,5e-05,2]
[323535815,1714076720020,20176.31019024,5e-05,2]
[323535816,1714076720411,1374.34488026,5e-05,2]
[323535817,1714076723181,54207.59101287,5e-05,2]
[323535818,1714076724764,1471.99909209,5e-05,2]
[323535819,1714076737266,1290.72,8.219e-05,2]
[323535820,1714076741958,5237.81442718,5e-05,2]
[323535821,1714076746726,1471.99909209,5e-05,2]
[323535822,1714076764741,1471.13903226,5e-05,2]
[323535823,1714076900956,-967.84164303,8.979e-05,2]
[323535824,1714076900983,-3081.50969513,8.979e-05,2]
[323535825,1714076901007,-10569.49520834,8.98e-05,2]
[323535826,1714076901031,-1351.89634566,8.98e-05,2]
[323535827,1714076901054,-527.07691918,8.98e-05,2]
[323535828,1714076901301,-414.41284543,8.98e-05,2]
[323535829,1714076901326,-155.0,8.98e-05,2]
[323535830,1714076901353,-781.51595373,8.98e-05,2]
[323535831,1714076901377,-1061.01702893,8.981e-05,2]
[323535832,1714076901402,-1995.26350139,8.981e-05,2]
[323535833,1714076901426,-157.28716472,8.981e-05,2]
[323535834,1714076901452,-2937.68369446,8.981e-05,2]
[323535835,1714076959647,-3422.51594,8.93e-05,2]
[323535836,1714076959673,-155.64996789,8.975e-05,2]
[323535837,1714076959698,-236.80231061,8.975e-05,2]
[323535838,1714076959722,-4730.25914393,8.976e-05,2]
[323535839,1714076959747,-4323.75448487,8.976e-05,2]
[323535840,1714076959772,-1000.0,8.977e-05,2]
[323535841,1714076959797,-363.32156126,8.977e-05,2]
[323535842,1714076959822,-155.0,8.977e-05,2]
[323535843,1714076959847,-5547.56885349,8.979e-05,2]
[323535844,1714076959871,-343.42621307,8.98e-05,2]
[323535845,1714076959895,-192.79472849,8.98e-05,2]
[323535846,1714076959920,-938.4265565,8.981e-05,2]
[323535847,1714076959944,-8563.67128491,8.981e-05,2]
[323535848,1714076960971,1026.80895498,8.975e-05,2]
[323535856,1714077002694,-3100.0,8.975e-05,2]
[323535870,1714077032304,-896.0988,8.875e-05,2]
[323535871,1714077032329,-387.2,8.897e-05,2]
[323535872,1714077032353,-372.19,8.902e-05,2]
[323535873,1714077032379,-5344.5112,8.915e-05,2]
[323535874,1714077032396,-347.96815075,8.915e-05,2]
[323535875,1714077032440,-1268.76382903,8.915e-05,2]
[323535876,1714077032549,-425.87682022,8.915e-05,2]
[323535877,1714077032558,-274.2041107,8.969e-05,2]
[323535878,1714077032606,-1700.0,8.969e-05,2]
[323535883,1714077038121,-3310.08256589,8.969e-05,2]
[323535884,1714077038133,-10510.64443999,8.969e-05,2]
[323535885,1714077038145,-1057.57328384,8.969e-05,2]
[323535886,1714077038156,-2534.27766681,8.969e-05,2]
[323535887,1714077038167,-412.98097719,8.969e-05,2]
[323535888,1714077038178,-1218.69803399,8.969e-05,2]
[323535889,1714077038190,-319.395,8.969e-05,2]
[323535894,1714077038511,-515.63211921,8.969e-05,2]
[323535896,1714077038522,-6714.73959698,8.969e-05,2]
[323535898,1714077038534,-323.19655094,8.969e-05,2]
[323535901,1714077038566,-400.0,8.969e-05,2]
[323535913,1714077038698,-698.16167033,8.969e-05,2]
[323535914,1714077038710,-597.24,8.969e-05,2]
[323535915,1714077038721,-20262.70398413,8.969e-05,2]
[323535916,1714077038730,-4584.3685979,9.009e-05,2]
[323535917,1714077038740,-9099.8,9.01e-05,2]
[323535918,1714077038750,-532.89332388,9.028e-05,2]
[323535919,1714077038759,-418.11,9.03e-05,2]
[323535920,1714077038769,-23900.0,9.052e-05,2]
[323535921,1714077038778,-250.0,9.077e-05,2]
[323535922,1714077038787,-2776.80207082,9.081e-05,2]
[323535923,1714077038797,-1984.24290083,9.081e-05,2]
[323535924,1714077038806,-563.665088,9.088e-05,2]
[323535925,1714077038815,-169.73,9.088e-05,2]
[323535926,1714077038825,-1984.24290083,9.089e-05,2]
[323535927,1714077038834,-860.88,9.105e-05,2]
[323535928,1714077038843,-490.38,9.162e-05,2]
[323535929,1714077038853,-614.77,9.168e-05,2]
[323535930,1714077038862,-277.77,9.17e-05,2]
[323535931,1714077038872,-655.69,9.298e-05,2]
[323535932,1714077038881,-655.69,9.323e-05,2]
[323535933,1714077038891,-655.69,9.349e-05,2]
[323535934,1714077038900,-481.04,9.354e-05,2]
[323535935,1714077038910,-165.26,9.361e-05,2]
[323535936,1714077038920,-655.69,9.374e-05,2]
[323535937,1714077038930,-655.69,9.4e-05,2]
[323535938,1714077038939,-655.69,9.425e-05,2]
[323535939,1714077038948,-655.69,9.451e-05,2]
[323535940,1714077038957,-655.69,9.476e-05,2]
[323535941,1714077038967,-655.69,9.502e-05,2]
[323535942,1714077038976,-655.69,9.527e-05,2]
[323535943,1714077038986,-655.69,9.553e-05,2]
[323535944,1714077038996,-175.58,9.558e-05,2]
[323535945,1714077039006,-655.69,9.578e-05,2]
[323535946,1714077039016,-655.69,9.604e-05,2]
[323535947,1714077039026,-655.69,9.629e-05,2]
[323535948,1714077039037,-655.69,9.655e-05,2]
[323535949,1714077039047,-655.69,9.68e-05,2]
[323535950,1714077039058,-655.69,9.706e-05,2]
[323535951,1714077039067,-655.69,9.731e-05,2]
[323535952,1714077039078,-655.69,9.757e-05,2]
[323535953,1714077039088,-655.69,9.782e-05,2]
[323535954,1714077039098,-166.13,9.932e-05,2]
[323535955,1714077039109,-207.90792551,0.0001,2]
[323535956,1714077039119,-710.33944675,0.0001,2]
[323535957,1714077039129,-387.2,0.0001001,2]
[323535958,1714077039139,-29301.0,0.00010313,2]
[323535959,1714077039149,-1290.72,0.00010424,2]
[323535960,1714077039160,-481.04,0.00010523,2]
[323535961,1714077039170,-1291.3552,0.0001061,2]
[323535962,1714077039181,-1351.89634566,0.00010856,2]
[323535963,1714077039191,-3000.82967405,0.00010856,2]
[323535964,1714077039201,-967.84164303,0.00010857,2]
[323535965,1714077039212,-192.8569,0.00010858,2]
[323535966,1714077039221,-500.0,0.00010958,2]
[323535967,1714077039231,-500.0,0.00010958,2]
[323535968,1714077039243,-621.66,0.00010958,2]
[323535969,1714077039252,-519.09,0.00010958,2]
[323535970,1714077039262,-500.0,0.00010958,2]
[323535971,1714077039271,-317.32,0.00010958,2]
[323535972,1714077039281,-500.0,0.00010958,2]